bitfinex-derivatives/quotes_BTCF0:USTF0_20240907
["timestamp","ask_amount","ask_price","bid_price","bid_amount"]
[1725729360019,0.04789147,54440.0,54439.0,0.12037378]
[1725729361318,0.04689147,54440.0,54439.0,0.10637378]
[1725729361513,0.04689147,54440.0,54439.0,0.11837378]
[1725729362105,0.04689147,54440.0,54439.0,0.11237378]
[1725729362313,0.04589147,54440.0,54439.0,0.09837378]
[1725729362512,0.04589147,54440.0,54439.0,0.01452378]
[1725729364015,0.04589147,54440.0,54439.0,0.10637378]
[1725729364722,0.04589147,54440.0,54439.0,0.10437378]
[1725729364920,0.04605586,54440.0,54439.0,0.10437378]
[1725729365108,0.04606185,54440.0,54439.0,0.10437378]
[1725729365315,0.138842,54444.0,54443.0,0.091843]
[1725729366423,0.138842,54444.0,54443.0,0.093843]
[1725729366620,0.091842,54444.0,54443.0,0.002]
[1725729366808,0.189442,54444.0,54443.0,0.002]
[1725729367921,0.189442,54444.0,54443.0,0.05686437]
[1725729368417,0.18961542,54444.0,54443.0,0.05686437]
[1725729368623,0.18960534,54444.0,54443.0,0.002]
[1725729368817,0.18958817,54444.0,54443.0,0.002]
[1725729369009,0.189442,54444.0,54443.0,0.05702703]
[1725729369210,0.189442,54444.0,54443.0,0.002]
[1725729371425,0.189442,54444.0,54443.0,0.07526347]
[1725729371723,0.18958951,54444.0,54443.0,0.07526347]
[1725729372024,0.189442,54444.0,54443.0,0.07526347]
[1725729372212,0.189442,54444.0,54443.0,0.002]
[1725729375414,0.18961542,54444.0,54443.0,0.002]
[1725729375717,1.524168,54444.0,54443.0,0.002]
[1725729376119,1.524168,54444.0,54439.0,0.00052378]
[1725729376120,0.55104,54443.0,54423.0,0.10421398]
[1725729376319,0.19,54424.0,54421.0,0.05511398]
[1725729376517,0.19,54424.0,54421.0,0.02640265]
[1725729376827,0.091877,54423.0,54422.0,0.091878]
[1725729377012,0.19,54424.0,54423.0,0.091877]
[1725729377215,0.091865,54431.0,54422.0,0.19]
[1725729377416,0.10685541,54444.0,54429.0,0.19]
[1725729377619,0.00017342,54443.0,54442.0,0.281845]
[1725729377825,0.0478,54451.0,54442.0,0.19]
[1725729378130,0.0478,54451.0,54444.0,0.091842]
[1725729378426,0.091836,54448.0,54446.0,0.091838]
[1725729378635,0.07440042,54451.0,54446.0,0.091838]
[1725729378636,0.091837,54447.0,54446.0,0.091838]
[1725729379015,0.091839,54446.0,54443.0,0.0974]
[1725729379212,0.091839,54446.0,54443.0,0.189243]
[1725729379429,0.091833,54449.0,54444.0,0.001]
[1725729379616,0.07440042,54451.0,54446.0,0.091838]
[1725729379617,0.091835,54448.0,54446.0,0.091838]
[1725729380015,0.00017342,54447.0,54446.0,0.091838]
[1725729380217,0.101835,54448.0,54446.0,0.092838]
[1725729381235,0.101835,54448.0,54447.0,0.091837]
[1725729381926,0.091837,54447.0,54446.0,0.001]
[1725729382125,0.100837,54447.0,54446.0,0.002]
[1725729382523,0.100837,54447.0,54446.0,0.001]
[1725729382724,0.090837,54447.0,54444.0,0.091841]
[1725729382926,0.011,54448.0,54445.0,0.05511398]
[1725729383124,0.011,54448.0,54447.0,0.05511398]
[1725729383328,0.011,54448.0,54447.0,0.14695098]
[1725729383531,0.21660042,54451.0,54447.0,0.14695098]
[1725729383733,0.19,54451.0,54447.0,0.14695098]
[1725729384236,0.05290474,54450.0,54447.0,0.091837]
[1725729384832,0.091835,54448.0,54447.0,0.091837]
[1725729385730,0.15489758,54448.0,54447.0,0.092837]
[1725729386229,0.15489758,54448.0,54447.0,0.14895098]
[1725729386434,0.101835,54448.0,54447.0,0.14895098]
[1725729387221,0.101835,54448.0,54447.0,0.093837]
[1725729387831,0.10200842,54448.0,54447.0,0.093837]
[1725729388126,0.101835,54448.0,54447.0,0.093837]
[1725729388326,0.1548537,54448.0,54447.0,0.093837]
[1725729393124,0.0630187,54448.0,54447.0,0.093837]
[1725729393334,0.0494,54462.0,54456.0,0.09182]
[1725729393523,0.19,54457.0,54451.0,0.091828]
[1725729393725,0.19,54457.0,54447.0,0.002]
[1725729393726,0.091835,54448.0,54447.0,0.002]
[1725729393923,0.3345531,54448.0,54447.0,0.002]
[1725729394137,0.3345531,54448.0,54447.0,0.093837]
[1725729394335,0.1445531,54448.0,54447.0,0.093837]
[1725729394529,0.091835,54448.0,54447.0,0.092837]
[1725729394730,0.090835,54448.0,54447.0,0.092837]
[1725729395431,0.09000842,54448.0,54447.0,0.091837]
[1725729395626,0.091837,54447.0,54446.0,0.02718305]
[1725729395831,0.091837,54447.0,54444.0,0.0471]
[1725729396236,0.089837,54447.0,54446.0,0.091838]
[1725729396925,0.089837,54447.0,54446.0,0.092838]
[1725729397939,0.089837,54447.0,54446.0,0.16632331]
[1725729398734,0.091837,54447.0,54446.0,0.16732331]
[1725729399126,0.00217342,54447.0,54446.0,0.16732331]
[1725729399333,0.002,54447.0,54446.0,0.16732331]
[1725729399938,0.0475,54461.0,54454.0,0.091824]
[1725729400143,0.091823,54455.0,54454.0,0.091824]
[1725729401140,0.091823,54455.0,54454.0,0.092824]
[1725729402437,0.091819,54458.0,54457.0,0.091819]
[1725729402642,0.14460766,54458.0,54457.0,0.091819]
[1725729403836,0.14460766,54458.0,54457.0,0.092819]
[1725729403837,0.05278866,54458.0,54457.0,0.092819]
[1725729404045,0.091817,54459.0,54458.0,0.091818]
[1725729404338,0.1452765,54459.0,54458.0,0.091818]
[1725729404538,0.0534595,54459.0,54458.0,0.091818]
[1725729405846,0.1452755,54459.0,54458.0,0.093818]
[1725729406146,0.14678926,54459.0,54458.0,0.093818]
[1725729406650,0.14678926,54459.0,54458.0,0.094818]
[1725729406949,0.14678926,54459.0,54458.0,0.003]
[1725729407246,0.091816,54459.0,54458.0,0.008]
[1725729408250,0.091816,54459.0,54458.0,0.012]
[1725729408849,0.1459959,54459.0,54458.0,0.007]
[1725729409042,0.1459959,54459.0,54458.0,0.004]
[1725729409345,0.1459959,54459.0,54458.0,0.006]
[1725729410043,0.1459959,54459.0,54458.0,0.002]
[1725729410246,0.091816,54459.0,54458.0,0.002]
[1725729410455,0.281816,54459.0,54458.0,0.002]
[1725729410637,0.28196562,54459.0,54458.0,0.002]
[1725729410842,0.281816,54459.0,54458.0,0.002]
[1725729411847,1.065448,54459.0,54458.0,0.002]
[1725729412067,0.091828,54452.0,54450.0,0.05501387]
[1725729412241,1.38678,54459.0,54449.0,0.05501387]
[1725729412242,0.183662,54450.0,54449.0,0.05501387]
[1725729412441,0.373662,54450.0,54449.0,0.05501387]
[1725729412639,0.091835,54448.0,54447.0,0.05501387]
[1725729412951,0.09184,54445.0,54443.0,0.091842]
[1725729413153,0.00017342,54444.0,54443.0,0.091842]
[1725729413452,0.08484,54445.0,54443.0,0.091842]
[1725729413950,0.07784,54445.0,54443.0,0.091842]
[1725729415151,0.091842,54444.0,54443.0,0.101842]
[1725729415356,0.001,54444.0,54443.0,0.302842]
[1725729415546,0.0486,54457.0,54443.0,0.76204]
[1725729415738,0.19,54455.0,54443.0,0.211]
[1725729415937,0.091827,54453.0,54445.0,0.091839]
[1725729416338,0.19,54451.0,54443.0,0.013]
[1725729416542,0.091823,54455.0,54443.0,0.013]
[1725729416543,0.091842,54444.0,54443.0,0.008]
[1725729416747,0.091842,54444.0,54443.0,0.013]
[1725729418241,0.091842,54444.0,54443.0,0.008]
[1725729418242,0.088842,54444.0,54443.0,0.008]
[1725729418855,0.080846,54442.0,54439.0,0.09185]
[1725729419950,0.00017342,54441.0,54439.0,0.09185]
[1725729420152,0.0001665,54440.0,54439.0,0.09185]
[1725729420350,0.0001564,54440.0,54439.0,0.09985]
[1725729420557,0.00017342,54440.0,54439.0,0.09985]
[1725729421055,0.091847,54441.0,54439.0,0.11085]
[1725729421853,0.091847,54441.0,54440.0,0.091848]
[1725729422661,0.001,54442.0,54441.0,0.091847]
[1725729422959,0.091838,54446.0,54444.0,0.091841]
[1725729423263,0.091838,54446.0,54444.0,0.16513876]
[1725729423656,0.091838,54446.0,54445.0,0.09184]
[1725729425151,0.091838,54446.0,54445.0,0.09384]
[1725729426049,0.092838,54446.0,54445.0,0.09184]
[1725729426257,0.092838,54446.0,54445.0,0.09784]
[1725729427155,0.09301142,54446.0,54445.0,0.09784]
[1725729427460,0.092838,54446.0,54445.0,0.09784]
[1725729427856,1.342,54446.0,54427.0,0.00144]
[1725729428060,0.19,54431.0,54420.0,0.0904]
[1725729428259,0.00901518,54446.0,54424.0,0.091875]
[1725729428466,0.00901518,54446.0,54422.0,0.091878]
[1725729428467,0.19,54434.0,54422.0,0.091878]
[1725729428765,0.00017342,54433.0,54423.0,0.091877]
[1725729428948,0.091869,54428.0,54423.0,0.091877]
[1725729429152,0.00014439,54427.0,54423.0,0.091877]
[1725729429358,0.091869,54428.0,54423.0,0.091877]
[1725729429760,0.091869,54428.0,54424.0,0.007]
[1725729430761,0.091871,54427.0,54424.0,0.007]
[1725729431359,0.092871,54427.0,54423.0,0.107877]
[1725729431559,0.001,54427.0,54423.0,0.007]
[1725729431863,0.001,54428.0,54423.0,0.007]
[1725729431864,0.001,54428.0,54423.0,0.005]
[1725729432162,0.001,54427.0,54424.0,0.002]
[1725729432363,0.002,54427.0,54424.0,0.007]
[1725729432556,0.002,54427.0,54424.0,0.005]
[1725729432978,0.091874,54425.0,54424.0,0.005]
[1725729433867,0.091875,54424.0,54423.0,0.007]
[1725729434260,0.091875,54424.0,54423.0,0.011]
[1725729434858,0.18075,54424.0,54423.0,0.005]
[1725729435461,0.18075,54424.0,54423.0,0.008]
[1725729435661,0.18075,54424.0,54423.0,0.003]
[1725729435863,0.17375,54424.0,54423.0,0.003]
[1725729436058,0.17375,54424.0,54423.0,0.001]
[1725729436470,1.32499,54424.0,54423.0,0.001]
[1725729436663,0.187,54416.0,54411.0,0.05497493]
[1725729436863,0.187,54416.0,54410.0,0.05497493]
[1725729437267,0.187,54416.0,54409.0,0.05497493]
[1725729437573,0.187,54416.0,54408.0,0.33987493]
[1725729438162,0.091897,54412.0,54409.0,0.05497493]
[1725729438362,0.187,54416.0,54409.0,0.14687593]
[1725729438363,0.090897,54411.0,54409.0,0.14687593]
[1725729438569,0.187,54416.0,54409.0,0.14687593]
[1725729438763,0.2137199,54416.0,54409.0,0.091901]
[1725729438968,0.2147199,54416.0,54409.0,0.091901]
[1725729439171,0.2157199,54416.0,54409.0,0.091901]
[1725729439670,0.001,54411.0,54409.0,0.091901]
[1725729440478,0.00017342,54410.0,54409.0,0.091901]
[1725729440671,0.09207242,54410.0,54409.0,0.091901]
[1725729440869,0.091899,54410.0,54409.0,0.091901]
[1725729442167,0.091899,54410.0,54409.0,0.093901]
[1725729442669,0.093899,54410.0,54409.0,0.092901]
[1725729443767,0.09307242,54410.0,54409.0,0.091901]
[1725729444072,0.093899,54410.0,54409.0,0.092901]
[1725729444567,0.09405023,54410.0,54409.0,0.001]
[1725729444773,0.093899,54410.0,54409.0,0.001]
[1725729445364,0.092899,54410.0,54409.0,0.001]
[1725729445564,0.092899,54410.0,54409.0,0.009]
[1725729445771,0.093899,54410.0,54409.0,0.011]
[1725729446271,0.080901,54409.0,54408.0,0.0949]
[1725729446670,0.08104277,54409.0,54408.0,0.0949]
[1725729446870,0.08107442,54409.0,54408.0,0.0949]
[1725729447075,0.080901,54409.0,54408.0,0.0949]
[1725729447473,0.081901,54409.0,54408.0,0.0969]
[1725729448486,0.081901,54409.0,54408.0,0.002]
[1725729448970,0.081901,54409.0,54408.0,0.01]
[1725729449172,0.082901,54409.0,54408.0,0.01]
[1725729450577,0.082901,54409.0,54408.0,0.08329776]
[1725729450774,0.08307442,54409.0,54408.0,0.08329776]
[1725729451079,0.082901,54409.0,54408.0,0.08329776]
[1725729451672,0.082901,54409.0,54408.0,0.01]
[1725729452574,0.082901,54409.0,54408.0,0.08329776]
[1725729452774,0.082901,54409.0,54408.0,0.003]
[1725729453175,0.082901,54409.0,54408.0,0.07429776]
[1725729453583,0.082901,54409.0,54408.0,0.001]
[1725729454883,0.08303436,54409.0,54408.0,0.001]
[1725729455082,0.082901,54409.0,54408.0,0.001]
[1725729455283,0.081901,54409.0,54407.0,0.091904]
[1725729455494,0.082901,54409.0,54407.0,0.091904]
[1725729455683,0.00017342,54408.0,54407.0,0.091904]
[1725729455870,0.082901,54409.0,54407.0,0.091904]
[1725729456076,0.091902,54408.0,54407.0,0.091904]
[1725729456590,0.001,54409.0,54408.0,0.091902]
[1725729456777,0.002,54409.0,54408.0,0.3234146]
[1725729457084,0.002,54409.0,54408.0,0.21595276]
[1725729457085,0.001,54409.0,54408.0,0.21595276]
[1725729457674,0.001,54409.0,54408.0,0.38641659]
[1725729457874,0.001,54409.0,54408.0,0.3864165]
[1725729459389,0.09189,54416.0,54408.0,0.3105145]
[1725729459576,0.09189,54416.0,54414.0,0.11006073]
[1725729459781,0.11824875,54416.0,54415.0,0.14005076]
[1725729459983,0.118422,54416.0,54415.0,0.14005076]
[1725729460182,0.11842217,54416.0,54415.0,0.14005076]
[1725729460377,0.11824875,54416.0,54415.0,0.14005076]
[1725729460781,0.091878,54423.0,54415.0,1.29137076]
[1725729460981,0.091878,54423.0,54421.0,0.19]
[1725729461180,0.091878,54423.0,54422.0,0.14005076]
[1725729463082,0.095878,54423.0,54422.0,0.23192976]
[1725729463788,0.103878,54423.0,54422.0,0.2329081]
[1725729464784,0.103878,54423.0,54422.0,0.23290621]
[1725729465188,0.103878,54423.0,54422.0,0.34307991]
[1725729465494,0.05790848,54423.0,54422.0,0.092879]
[1725729469399,0.012,54423.0,54422.0,0.092879]
[1725729470000,0.19,54438.0,54431.0,0.091862]
[1725729470190,0.19,54438.0,54432.0,0.091862]
[1725729470790,0.07492135,54437.0,54432.0,0.091862]
[1725729471186,0.02642135,54437.0,54433.0,0.091859]
[1725729471390,0.091853,54438.0,54435.0,0.19]
[1725729472489,0.011,54437.0,54436.0,0.091855]
[1725729472891,0.19,54451.0,54440.0,0.091847]
[1725729473095,0.091839,54446.0,54441.0,0.19]
[1725729473495,0.091839,54446.0,54442.0,0.091845]
[1725729473887,0.091839,54446.0,54441.0,0.19]
[1725729474088,0.091839,54446.0,54443.0,0.091843]
[1725729475494,0.099839,54446.0,54443.0,0.091843]
[1725729476199,0.099839,54446.0,54443.0,0.092843]
[1725729476705,0.09184,54445.0,54443.0,0.092843]
[1725729477404,0.008,54446.0,54443.0,0.001]
[1725729477601,0.008,54446.0,54445.0,0.09184]
[1725729477803,0.05285829,54446.0,54445.0,0.09184]
[1725729478019,0.008,54446.0,54445.0,0.09184]
[1725729478509,0.008,54446.0,54445.0,1.24284]
[1725729478811,0.19,54458.0,54445.0,1.151]
[1725729478812,0.0931,54457.0,54445.0,1.151]
[1725729479003,0.0931,54457.0,54448.0,0.19]
[1725729479306,0.091827,54453.0,54450.0,0.09183]
[1725729479608,0.091827,54453.0,54451.0,0.091829]
[1725729479804,0.091827,54453.0,54452.0,0.091828]
[1725729480603,0.15769744,54453.0,54452.0,0.091828]
[1725729481007,0.06587044,54453.0,54452.0,0.05078345]
[1725729481207,0.07536871,54467.0,54452.0,0.14261145]
[1725729481414,0.06586518,54466.0,54462.0,0.281811]
[1725729481608,0.046,54467.0,54462.0,0.281811]
[1725729481609,0.091808,54464.0,54462.0,0.281811]
[1725729481805,0.06586518,54463.0,54462.0,0.281811]
[1725729483317,0.06586518,54466.0,54463.0,0.091809]
[1725729483515,0.06586518,54465.0,54463.0,0.091809]
[1725729483712,0.0966,54470.0,54468.0,0.091801]
[1725729483713,0.06586518,54469.0,54468.0,0.091801]
[1725729483912,0.06585335,54469.0,54468.0,0.091801]
[1725729484211,0.139898,54470.0,54468.0,0.091801]
[1725729484212,0.11395335,54470.0,54468.0,0.091801]
[1725729484709,0.06585335,54470.0,54469.0,0.091799]
[1725729485217,0.09219849,54477.0,54473.0,0.091792]
[1725729485420,0.06585335,54476.0,54472.0,0.19]
[1725729485599,0.06585335,54477.0,54472.0,0.19]
[1725729485803,0.06585335,54476.0,54472.0,0.19]
[1725729486015,0.06585335,54477.0,54472.0,0.17100001]
[1725729486210,0.11830746,54478.0,54472.0,0.17100001]
[1725729486705,0.091786,54477.0,54475.0,0.091789]
[1725729487016,0.097786,54477.0,54475.0,0.091789]
[1725729489210,0.091786,54477.0,54475.0,0.091789]
[1725729489811,0.091788,54476.0,54475.0,0.092789]
[1725729490010,0.091788,54476.0,54475.0,0.001]
[1725729490215,0.183576,54476.0,54475.0,0.001]
[1725729490413,0.091811,54462.0,54461.0,0.321]
[1725729490715,0.091815,54460.0,54458.0,0.091817]
[1725729491214,0.090815,54460.0,54458.0,0.091817]
[1725729491914,0.090815,54460.0,54459.0,0.091816]
[1725729492914,0.090815,54460.0,54455.0,0.21643761]
[1725729492915,0.02737246,54462.0,54455.0,0.19]
[1725729493117,0.091818,54458.0,54457.0,0.09182]
[1725729493308,0.090818,54458.0,54457.0,0.09182]
[1725729495708,0.092818,54458.0,54457.0,0.09182]
[1725729496921,0.092818,54458.0,54451.0,0.19]
[1725729496922,0.091821,54456.0,54451.0,0.19]
[1725729497214,0.09183,54452.0,54451.0,0.091829]
[1725729497610,0.002,54458.0,54454.0,0.091825]
[1725729498117,0.091823,54455.0,54454.0,0.091825]
[1725729498414,0.091828,54452.0,54451.0,0.19]
[1725729498617,0.02919372,54458.0,54451.0,0.19]
[1725729498820,0.091825,54455.0,54454.0,0.091824]
[1725729500324,0.091825,54455.0,54454.0,0.092824]
[1725729502007,0.091825,54455.0,54454.0,0.091824]
[1725729502213,0.091825,54455.0,54454.0,0.092824]
[1725729503913,0.091825,54455.0,54454.0,0.091824]
[1725729504118,0.092825,54455.0,54454.0,0.105824]
[1725729505525,0.091825,54455.0,54454.0,0.091824]
[1725729505727,0.091825,54455.0,54454.0,0.092824]
[1725729506819,0.092825,54455.0,54454.0,0.105824]
[1725729507225,0.001,54455.0,54454.0,0.105824]
[1725729508630,0.091816,54460.0,54459.0,0.091816]
[1725729509932,0.092816,54460.0,54459.0,0.101816]
[1725729511638,0.091816,54460.0,54459.0,0.091816]
[1725729511823,0.092816,54460.0,54459.0,0.101816]
[1725729515137,0.092816,54460.0,54459.0,0.091816]
[1725729515342,0.092816,54460.0,54459.0,0.101816]
[1725729515939,0.092816,54460.0,54459.0,0.099816]
[1725729518837,0.091816,54460.0,54459.0,0.091816]
[1725729519042,0.092816,54460.0,54459.0,0.099816]
[1725729519431,0.091816,54460.0,54459.0,0.091816]
[1725729519632,0.092816,54460.0,54459.0,0.099816]
[1725729520031,0.091816,54460.0,54459.0,0.091816]
[1725729520343,0.091816,54460.0,54459.0,0.098816]
[1725729520344,0.092816,54460.0,54459.0,0.098816]
[1725729523436,0.091816,54460.0,54459.0,0.091816]
[1725729523749,0.091816,54460.0,54459.0,0.094816]
[1725729524047,0.091816,54460.0,54459.0,0.091816]
[1725729524247,0.091816,54460.0,54459.0,0.092816]
[1725729525442,0.13906181,54460.0,54459.0,0.092816]
[1725729525644,0.13906181,54460.0,54459.0,0.091816]
[1725729525844,0.13906181,54460.0,54459.0,0.092816]
[1725729529037,0.13906181,54460.0,54456.0,0.09182]
[1725729529238,0.13906181,54460.0,54459.0,0.001]
[1725729529451,0.1388085,54460.0,54459.0,0.001]
[1725729530151,0.09182,54457.0,54456.0,0.09182]
[1725729530347,0.09182,54457.0,54456.0,0.09582]
[1725729531249,0.13922019,54457.0,54456.0,0.09582]
[1725729531648,0.23104019,54457.0,54456.0,0.004]
[1725729531847,0.23104019,54457.0,54450.0,0.07344062]
[1725729531848,0.09183,54451.0,54450.0,0.14691147]
[1725729532152,0.091831,54450.0,54449.0,0.14694493]
[1725729532342,0.091831,54450.0,54449.0,0.091833]
[1725729532549,0.13923119,54450.0,54449.0,0.091833]
[1725729532847,0.13623119,54450.0,54449.0,0.091833]
[1725729533349,0.13723119,54450.0,54449.0,0.201833]
[1725729533545,0.20309776,54450.0,54449.0,0.201833]
[1725729535353,0.20209776,54450.0,54449.0,0.191833]
[1725729535548,0.20309776,54450.0,54449.0,0.197833]
[1725729536056,0.20209776,54450.0,54449.0,0.191833]
[1725729536244,0.20209776,54450.0,54449.0,0.195833]
[1725729538149,0.15469757,54450.0,54449.0,0.195833]
[1725729539554,0.06586657,54450.0,54449.0,0.195833]
[1725729540554,0.091826,54454.0,54453.0,0.091826]
[1725729540757,0.091826,54454.0,54453.0,0.28360563]
[1725729541353,0.091826,54454.0,54453.0,0.191826]
[1725729541554,0.091826,54454.0,54453.0,0.28360563]
[1725729542762,0.092826,54454.0,54453.0,0.28360563]
[1725729543460,0.092826,54454.0,54453.0,0.42354781]
[1725729544055,0.001,54454.0,54453.0,0.42354781]
[1725729544256,0.001,54454.0,54453.0,0.35884655]
[1725729544464,0.091813,54461.0,54460.0,0.091815]
[1725729544850,0.13768792,54461.0,54460.0,0.091815]
[1725729546053,0.14668792,54461.0,54460.0,0.092815]
[1725729546455,0.05487492,54461.0,54460.0,0.092815]
[1725729546658,0.009,54461.0,54460.0,0.092815]
[1725729548662,0.009,54461.0,54460.0,0.11900603]
[1725729552356,0.00669399,54461.0,54460.0,1.36166103]
[1725729552956,0.091794,54473.0,54460.0,1.36166103]
[1725729553158,0.140174,54485.0,54475.0,0.091789]
[1725729553159,0.091778,54482.0,54475.0,0.091789]
[1725729553363,0.04491738,54481.0,54477.0,0.1]
[1725729554462,0.1,54480.0,54477.0,0.1]
[1725729554667,0.04491738,54479.0,54473.0,0.1]
[1725729555663,0.091791,54475.0,54473.0,0.191792]
[1725729555862,0.10975862,54474.0,54473.0,0.191792]
[1725729556064,0.18510994,54474.0,54473.0,0.17261281]
[1725729556571,0.18510994,54474.0,54473.0,0.17361281]
[1725729557068,0.18710994,54474.0,54473.0,0.17361281]
[1725729557270,0.11175862,54474.0,54473.0,0.17361281]
[1725729557662,0.04691738,54474.0,54473.0,0.17361281]
[1725729558366,0.13870838,54474.0,54473.0,0.17361281]
[1725729558564,0.13870838,54474.0,54473.0,0.092792]
[1725729558963,0.13670838,54474.0,54473.0,0.095792]
[1725729559167,0.091791,54474.0,54473.0,0.095792]
[1725729559562,0.091791,54474.0,54473.0,0.097792]
[1725729560264,0.091791,54474.0,54473.0,0.095792]
[1725729560766,0.091791,54474.0,54473.0,0.195792]
[1725729561872,0.091791,54474.0,54473.0,0.191792]
[1725729562061,0.091791,54474.0,54473.0,0.194792]
[1725729562570,0.09177,54487.0,54473.0,0.103]
[1725729562769,0.091785,54478.0,54477.0,0.091786]
[1725729562974,0.091785,54478.0,54477.0,0.191786]
[1725729565476,0.092785,54478.0,54477.0,0.191786]
[1725729566277,0.091785,54478.0,54477.0,0.192786]
[1725729568374,0.15177569,54478.0,54477.0,0.192786]
[1725729569866,0.15177569,54478.0,54477.0,0.191786]
[1725729570678,0.22710989,54478.0,54477.0,0.191786]
[1725729573883,0.31193801,54478.0,54477.0,0.17260741]
[1725729574086,0.22710989,54478.0,54477.0,0.17260741]
[1725729574380,0.22015301,54478.0,54477.0,0.17260741]
[1725729574587,0.13532489,54478.0,54477.0,0.17260741]
[1725729575084,0.13532489,54478.0,54477.0,0.26439341]
[1725729575273,0.0753342,54478.0,54477.0,0.84219611]
[1725729575475,0.14116194,54478.0,54477.0,0.84219611]
[1725729575684,0.0753342,54478.0,54477.0,0.8497625]
[1725729575884,0.091757,54495.0,54477.0,1.2661905]
[1725729575885,0.07531583,54494.0,54477.0,1.2661905]
[1725729576182,0.07531583,54493.0,54492.0,0.09176]
[1725729576479,0.07531583,54493.0,54492.0,0.19176]
[1725729577677,0.07531583,54493.0,54492.0,0.19276]
[1725729577678,0.005,54493.0,54492.0,0.19276]
[1725729579380,0.02639313,54495.0,54494.0,0.091757]
[1725729579680,0.091751,54498.0,54494.0,0.091757]
[1725729579885,0.091751,54498.0,54497.0,0.1]
[1725729580883,0.096751,54498.0,54497.0,0.1]
[1725729581280,0.005,54498.0,54497.0,0.1]
[1725729581494,0.005,54498.0,54497.0,0.191752]
[1725729582386,0.091747,54501.0,54497.0,0.191752]
[1725729582583,0.091747,54501.0,54500.0,0.191747]
[1725729583378,0.15756927,54501.0,54500.0,0.191747]
[1725729583790,0.16256927,54501.0,54500.0,0.1]
[1725729583979,0.091749,54499.0,54498.0,0.1]
[1725729585491,0.090749,54499.0,54498.0,0.1]
[1725729585991,0.090749,54499.0,54497.0,0.281752]
[1725729586807,0.095749,54499.0,54498.0,0.001]
[1725729588284,0.090749,54499.0,54497.0,0.281752]
[1725729588484,0.096749,54499.0,54497.0,0.282752]
[1725729588886,0.096749,54499.0,54497.0,0.281752]
[1725729589094,0.097749,54499.0,54498.0,0.001]
[1725729589692,0.097749,54499.0,54497.0,0.282752]
[1725729590299,0.090749,54499.0,54498.0,0.091751]
[1725729590497,0.097749,54499.0,54498.0,0.092751]
[1725729592200,0.096749,54499.0,54498.0,0.091751]
[1725729592595,0.090749,54499.0,54498.0,0.091751]
[1725729592800,0.096749,54499.0,54498.0,0.092751]
[1725729592998,0.096749,54499.0,54498.0,0.001]
[1725729598402,0.17708597,54499.0,54498.0,0.001]
[1725729600405,0.25238686,54499.0,54498.0,0.001]
[1725729600905,0.17708597,54499.0,54498.0,0.001]
[1725729605414,0.096749,54499.0,54498.0,0.001]
[1725729608109,0.17204989,54499.0,54498.0,0.101]
[1725729610309,1.41427989,54499.0,54498.0,0.001]
[1725729610508,0.091769,54487.0,54486.0,0.1498]
[1725729610702,0.091771,54486.0,54485.0,0.321]
[1725729610911,0.25884289,54486.0,54485.0,0.321]
[1725729611806,0.16707189,54486.0,54485.0,0.321]
[1725729612604,0.07530089,54486.0,54485.0,0.321]
[1725729612807,0.091767,54489.0,54488.0,0.091767]
[1725729613014,0.16706789,54489.0,54488.0,0.191767]
[1725729613216,0.091767,54489.0,54488.0,0.191767]
[1725729614215,0.099767,54489.0,54488.0,0.192767]
[1725729619626,0.008,54489.0,54488.0,0.192767]
[1725729620518,0.08834729,54489.0,54488.0,0.192767]
[1725729621009,0.18011329,54489.0,54488.0,0.192767]
[1725729621208,0.18011329,54489.0,54488.0,0.001]
[1725729627518,0.27187929,54489.0,54488.0,0.001]
[1725729628024,0.31757929,54489.0,54488.0,0.001]
[1725729636729,0.089769,54487.0,54486.0,0.1]
[1725729637328,0.17012635,54487.0,54486.0,0.1]
[1725729637925,0.089769,54487.0,54486.0,0.102]
[1725729638127,0.089769,54487.0,54486.0,0.193771]
[1725729640430,0.089769,54487.0,54486.0,0.192771]
[1725729641424,0.089769,54487.0,54486.0,0.101]
[1725729642432,0.091759,54494.0,54486.0,0.101]
[1725729642729,0.091759,54494.0,54493.0,0.1]
[1725729643738,0.17210675,54494.0,54493.0,0.1]
[1725729644037,0.17210675,54494.0,54493.0,0.191759]
[1725729644228,0.18010675,54494.0,54493.0,0.192759]
[1725729645935,0.17610675,54494.0,54493.0,0.281759]
[1725729646937,0.278317,54494.0,54493.0,0.281759]
[1725729647331,0.186558,54494.0,54489.0,0.091765]
[1725729647533,0.091764,54490.0,54489.0,0.091765]
[1725729647724,0.17211175,54490.0,54489.0,0.091765]
[1725729650439,0.17211175,54490.0,54489.0,0.092765]
[1725729650736,0.091764,54490.0,54489.0,0.092765]
[1725729653130,0.091764,54490.0,54489.0,0.091765]
[1725729653436,0.091764,54490.0,54489.0,0.092765]
[1725729654532,0.17211405,54490.0,54489.0,0.092765]
[1725729654734,0.091764,54490.0,54489.0,0.092765]
[1725729655239,0.17211412,54490.0,54489.0,0.092765]
[1725729656031,0.091764,54490.0,54489.0,0.092765]
[1725729656331,0.1721127,54490.0,54489.0,0.092765]
[1725729657033,0.091764,54490.0,54489.0,0.092765]
[1725729657235,0.1721106,54490.0,54489.0,0.092765]
[1725729657841,0.0803466,54490.0,54489.0,0.092765]
[1725729658141,0.08034666,54490.0,54489.0,0.001]
[1725729658342,0.08034611,54492.0,54489.0,0.001]
[1725729658539,0.08034611,54492.0,54491.0,0.19]
[1725729658732,0.08034611,54492.0,54491.0,0.08669895]
[1725729658932,0.08034611,54492.0,54491.0,0.17846095]
[1725729659235,0.02690172,54494.0,54493.0,0.091759]